[Event "Titled Tuesday Blitz June 27 Late 2023"]
[White "Andersson, Bjorn 1971"]
[Black "Vaglio Mattey, Emanuel"]
[WhiteFideId "1702114"]
[BlackFideId "6504167"]
[WhiteElo "2333"]
[BlackElo "2508"]
[Result "1/2-1/2"]
[Round "6"]
[TimeControl "180+2"]
[Date "2023.06.27"]
[WhiteClock "0:00:40"]
[BlackClock "0:00:05"]
[Board "122"]

1. e4 {[%clk 0:03:00]}  c5 {[%clk 0:02:58]} 2. Nf3 {[%clk 0:03:00]}  e6 {[%clk 0:02:58]} 3. d4 {[%clk 0:03:00]}  cxd4 {[%clk 0:02:58]} 4. Nxd4 {[%clk 0:03:01]}  a6 {[%clk 0:02:59]} 5. Be2 {[%clk 0:03:00]}  Qc7 {[%clk 0:03:00]} 6. O-O {[%clk 0:02:58]}  Nf6 {[%clk 0:03:00]} 7. Nc3 {[%clk 0:02:57]}  d6 {[%clk 0:03:01]} 8. Kh1 {[%clk 0:02:55]}  Nbd7 {[%clk 0:03:01]} 9. f4 {[%clk 0:02:54]}  Be7 {[%clk 0:03:01]} 10. f5 {[%clk 0:02:54]}  Nc5 {[%clk 0:02:56]} 11. fxe6 {[%clk 0:02:54]}  fxe6 {[%clk 0:02:56]} 12. Bh5+ {[%clk 0:02:49]}  g6 {[%clk 0:02:51]} 13. Bf3 {[%clk 0:02:48]}  e5 {[%clk 0:02:43]} 14. Nb3 {[%clk 0:02:47]}  O-O {[%clk 0:02:40]} 15. Bh6 {[%clk 0:02:46]}  Rf7 {[%clk 0:02:40]} 16. Bg5 {[%clk 0:02:45]}  Be6 {[%clk 0:02:32]} 17. Bxf6 {[%clk 0:02:39]}  Bxf6 {[%clk 0:02:33]} 18. Bg4 {[%clk 0:02:34]}  Bc4 {[%clk 0:02:02]} 19. Nd5 {[%clk 0:02:25]}  Bxd5 {[%clk 0:02:00]} 20. Qxd5 {[%clk 0:02:24]}  Kg7 {[%clk 0:01:52]} 21. Nxc5 {[%clk 0:02:16]}  dxc5 {[%clk 0:01:43]} 22. Be6 {[%clk 0:02:14]}  Rff8 {[%clk 0:01:35]} 23. Qd3 {[%clk 0:02:14]}  Rad8 {[%clk 0:01:22]} 24. Bd5 {[%clk 0:02:12]}  b5 {[%clk 0:01:22]} 25. b3 {[%clk 0:02:11]}  Bg5 {[%clk 0:01:21]} 26. c4 {[%clk 0:02:07]}  b4 {[%clk 0:01:20]} 27. Qg3 {[%clk 0:02:00]}  Qe7 {[%clk 0:01:20]} 28. Rf3 {[%clk 0:01:57]}  Rxf3 {[%clk 0:01:18]} 29. gxf3 {[%clk 0:01:50]}  Rf8 {[%clk 0:01:18]} 30. Kg2 {[%clk 0:01:47]}  Rf4 {[%clk 0:01:02]} 31. Rf1 {[%clk 0:01:41]}  Rh4 {[%clk 0:00:47]} 32. Rh1 {[%clk 0:01:18]}  Bf4 {[%clk 0:00:34]} 33. Qf2 {[%clk 0:01:17]}  Qg5+ {[%clk 0:00:35]} 34. Kf1 {[%clk 0:01:17]}  Be3 {[%clk 0:00:35]} 35. Qg2 {[%clk 0:01:14]}  Qf6 {[%clk 0:00:35]} 36. Ke2 {[%clk 0:01:11]}  Bd4 {[%clk 0:00:36]} 37. Qg3 {[%clk 0:01:07]}  Rh5 {[%clk 0:00:17]} 38. h4 {[%clk 0:01:02]}  h6 {[%clk 0:00:16]} 39. Rh2 {[%clk 0:01:01]}  Qf4 {[%clk 0:00:15]} 40. Qxf4 {[%clk 0:01:00]}  exf4 {[%clk 0:00:15]} 41. Kf1 {[%clk 0:00:56]}  Bf6 {[%clk 0:00:15]} 42. Be6 {[%clk 0:00:54]}  Rxh4 {[%clk 0:00:09]} 43. Rxh4 {[%clk 0:00:54]}  Bxh4 {[%clk 0:00:10]} 44. Kg2 {[%clk 0:00:55]}  Kf6 {[%clk 0:00:10]} 45. Bc8 {[%clk 0:00:53]}  a5 {[%clk 0:00:11]} 46. Kh3 {[%clk 0:00:54]}  Bf2 {[%clk 0:00:11]} 47. Bd7 {[%clk 0:00:51]}  Be3 {[%clk 0:00:11]} 48. Be8 {[%clk 0:00:51]}  h5 {[%clk 0:00:09]} 49. Kh4 {[%clk 0:00:49]}  Bf2+ {[%clk 0:00:09]} 50. Kh3 {[%clk 0:00:50]}  Be1 {[%clk 0:00:09]} 51. Kg2 {[%clk 0:00:50]}  Bd2 {[%clk 0:00:07]} 52. Kh3 {[%clk 0:00:50]}  Be1 {[%clk 0:00:08]} 53. Kg2 {[%clk 0:00:50]}  Bg3 {[%clk 0:00:08]} 54. Kh3 {[%clk 0:00:50]}  Kg7 {[%clk 0:00:06]} 55. Kg2 {[%clk 0:00:50]}  Kh6 {[%clk 0:00:07]} 56. Kh3 {[%clk 0:00:48]}  g5 {[%clk 0:00:07]} 57. Bf7 {[%clk 0:00:47]}  Bf2 {[%clk 0:00:06]} 58. Be8 {[%clk 0:00:46]}  Bd4 {[%clk 0:00:06]} 59. Bd7 {[%clk 0:00:46]}  Be5 {[%clk 0:00:07]} 60. Bf5 {[%clk 0:00:46]}  Bf6 {[%clk 0:00:06]} 61. Bc8 {[%clk 0:00:47]}  g4+ {[%clk 0:00:04]} 62. fxg4 {[%clk 0:00:44]}  h4 {[%clk 0:00:05]} 63. Bf5 {[%clk 0:00:41]}  Kg5 {[%clk 0:00:05]} 64. Kg2 {[%clk 0:00:41]}  Be5 {[%clk 0:00:05]} 65. Be6 {[%clk 0:00:41]}  Bd4 {[%clk 0:00:05]} 66. Bf5 {[%clk 0:00:41]}  Be5 {[%clk 0:00:06]} 67. Be6 {[%clk 0:00:41]}  f3+ {[%clk 0:00:04]} 68. Kxf3 {[%clk 0:00:41]}  h3 {[%clk 0:00:04]} 69. Bf5 {[%clk 0:00:40]}  Bd6 {[%clk 0:00:03]} 70. Be6 {[%clk 0:00:39]}  Be5 {[%clk 0:00:04]} 71. Bd7 {[%clk 0:00:39]}  Bd6 {[%clk 0:00:04]} 72. Be6 {[%clk 0:00:40]}  Be5 {[%clk 0:00:05]} 1/2-1/2


[Site "https://www.chess.com"]

[Event "Titled Tuesday Blitz June 27 Late 2023"]
[White "Ward, Ieuan C"]
[Black "Kielinkei"]
[WhiteFideId "406627"]
[WhiteElo "2276"]
[BlackElo "2453"]
[Result "1/2-1/2"]
[Round "6"]
[TimeControl "180+2"]
[Date "2023.06.27"]
[WhiteClock "0:00:52"]
[BlackClock "0:00:05"]
[Board "123"]

1. d4 {[%clk 0:03:00]}  f5 {[%clk 0:02:59]} 2. c4 {[%clk 0:03:00]}  Nf6 {[%clk 0:02:59]} 3. Nc3 {[%clk 0:03:01]}  e6 {[%clk 0:02:59]} 4. Nf3 {[%clk 0:03:00]}  Bb4 {[%clk 0:02:59]} 5. Bd2 {[%clk 0:02:59]}  O-O {[%clk 0:02:58]} 6. g3 {[%clk 0:02:59]}  b6 {[%clk 0:02:58]} 7. Bg2 {[%clk 0:02:59]}  Bb7 {[%clk 0:02:58]} 8. O-O {[%clk 0:02:59]}  d6 {[%clk 0:02:57]} 9. a3 {[%clk 0:02:58]}  Bxc3 {[%clk 0:02:57]} 10. Bxc3 {[%clk 0:02:59]}  Nbd7 {[%clk 0:02:57]} 11. e3 {[%clk 0:02:56]}  Qe7 {[%clk 0:02:56]} 12. Qb3 {[%clk 0:02:54]}  Ne4 {[%clk 0:02:53]} 13. Nd2 {[%clk 0:02:52]}  Nxd2 {[%clk 0:02:50]} 14. Bxd2 {[%clk 0:02:51]}  Bxg2 {[%clk 0:02:50]} 15. Kxg2 {[%clk 0:02:51]}  Nf6 {[%clk 0:02:44]} 16. a4 {[%clk 0:02:45]}  a5 {[%clk 0:02:43]} 17. c5 {[%clk 0:02:41]}  dxc5 {[%clk 0:02:26]} 18. dxc5 {[%clk 0:02:42]}  Ne4 {[%clk 0:02:26]} 19. Rfd1 {[%clk 0:02:36]}  Nxc5 {[%clk 0:02:26]} 20. Qc4 {[%clk 0:02:35]}  Kh8 {[%clk 0:02:20]} 21. b4 {[%clk 0:02:31]}  Ne4 {[%clk 0:02:12]} 22. b5 {[%clk 0:02:31]}  Rfd8 {[%clk 0:02:06]} 23. Be1 {[%clk 0:02:26]}  e5 {[%clk 0:02:00]} 24. Rac1 {[%clk 0:02:23]}  Nc5 {[%clk 0:01:57]} 25. Rd5 {[%clk 0:02:17]}  Qe6 {[%clk 0:01:46]} 26. Rxd8+ {[%clk 0:02:15]}  Rxd8 {[%clk 0:01:47]} 27. Bxa5 {[%clk 0:02:05]}  Qxc4 {[%clk 0:01:09]} 28. Rxc4 {[%clk 0:02:06]}  e4 {[%clk 0:00:53]} 29. Bc3 {[%clk 0:02:02]}  Rd5 {[%clk 0:00:43]} 30. a5 {[%clk 0:01:56]}  bxa5 {[%clk 0:00:42]} 31. Bxa5 {[%clk 0:01:55]}  Ne6 {[%clk 0:00:40]} 32. Bxc7 {[%clk 0:01:53]}  Rxb5 {[%clk 0:00:39]} 33. Be5 {[%clk 0:01:41]}  h6 {[%clk 0:00:27]} 34. Bd4 {[%clk 0:01:32]}  Rb7 {[%clk 0:00:19]} 35. h3 {[%clk 0:01:29]}  Kh7 {[%clk 0:00:17]} 36. Be5 {[%clk 0:01:23]}  Ng5 {[%clk 0:00:15]} 37. g4 {[%clk 0:01:16]}  g6 {[%clk 0:00:16]} 38. gxf5 {[%clk 0:01:15]}  gxf5 {[%clk 0:00:16]} 39. Bf4 {[%clk 0:01:15]}  Nf3 {[%clk 0:00:15]} 40. Rc6 {[%clk 0:01:06]}  Rb1 {[%clk 0:00:15]} 41. h4 {[%clk 0:01:03]}  Nxh4+ {[%clk 0:00:13]} 42. Kh3 {[%clk 0:01:02]}  Rh1+ {[%clk 0:00:12]} 43. Kg3 {[%clk 0:01:03]}  Nf3 {[%clk 0:00:09]} 44. Kg2 {[%clk 0:00:59]}  Rg1+ {[%clk 0:00:09]} 45. Kh3 {[%clk 0:00:59]}  Ng5+ {[%clk 0:00:06]} 46. Kh2 {[%clk 0:00:56]}  Nf3+ {[%clk 0:00:07]} 47. Kh3 {[%clk 0:00:56]}  Ng5+ {[%clk 0:00:05]} 48. Kh2 {[%clk 0:00:56]}  Rf1 {[%clk 0:00:05]} 49. Kg2 {[%clk 0:00:57]}  Ra1 {[%clk 0:00:04]} 50. Rc7+ {[%clk 0:00:57]}  Kg6 {[%clk 0:00:04]} 51. Rc6+ {[%clk 0:00:57]}  Kh5 {[%clk 0:00:05]} 52. Rf6 {[%clk 0:00:57]}  Ra5 {[%clk 0:00:02]} 53. Kg3 {[%clk 0:00:53]}  Rd5 {[%clk 0:00:03]} 54. Kg2 {[%clk 0:00:53]}  Kg4 {[%clk 0:00:03]} 55. Rxh6 {[%clk 0:00:52]}  Nf3 {[%clk 0:00:03]} 56. Rg6+ {[%clk 0:00:51]}  Kh5 {[%clk 0:00:03]} 57. Rh6+ {[%clk 0:00:51]}  Kg4 {[%clk 0:00:03]} 58. Rg6+ {[%clk 0:00:51]}  Kh5 {[%clk 0:00:04]} 59. Rh6+ {[%clk 0:00:52]}  Kg4 {[%clk 0:00:05]} 1/2-1/2


[Site "https://www.chess.com"]

[Event "Titled Tuesday Blitz June 27 Late 2023"]
[White "BrandonJiang123456"]
[Black "whiteglovethief"]
[WhiteElo "2212"]
[BlackElo "2450"]
[Result "0-1"]
[Round "6"]
[TimeControl "180+2"]
[Date "2023.06.27"]
[WhiteClock "0:00:00"]
[BlackClock "0:00:07"]
[Board "124"]

1. e4 {[%clk 0:03:00]}  d5 {[%clk 0:02:58]} 2. exd5 {[%clk 0:03:00]}  Qxd5 {[%clk 0:02:59]} 3. Nc3 {[%clk 0:03:00]}  Qa5 {[%clk 0:03:00]} 4. h3 {[%clk 0:02:59]}  Nf6 {[%clk 0:03:00]} 5. d4 {[%clk 0:02:58]}  Bf5 {[%clk 0:02:55]} 6. Nf3 {[%clk 0:02:56]}  e6 {[%clk 0:02:55]} 7. a3 {[%clk 0:02:55]}  c6 {[%clk 0:02:54]} 8. Be2 {[%clk 0:02:51]}  Ne4 {[%clk 0:02:50]} 9. Bd2 {[%clk 0:02:27]}  Nxc3 {[%clk 0:02:49]} 10. Bxc3 {[%clk 0:02:27]}  Qb6 {[%clk 0:02:45]} 11. O-O {[%clk 0:02:26]}  Be7 {[%clk 0:02:45]} 12. Qd2 {[%clk 0:02:23]}  Nd7 {[%clk 0:02:43]} 13. Ba5 {[%clk 0:02:20]}  Qxb2 {[%clk 0:02:43]} 14. Rfc1 {[%clk 0:01:49]}  Nf6 {[%clk 0:02:12]} 15. Ne1 {[%clk 0:01:32]}  Ne4 {[%clk 0:02:10]} 16. Qe3 {[%clk 0:01:29]}  Bg5 {[%clk 0:02:06]} 17. f4 {[%clk 0:01:22]}  Bf6 {[%clk 0:01:48]} 18. Nf3 {[%clk 0:00:54]}  Ng3 {[%clk 0:01:28]} 19. Bc4 {[%clk 0:00:44]}  b5 {[%clk 0:01:12]} 20. Rab1 {[%clk 0:00:41]}  Qxc1+ {[%clk 0:01:02]} 21. Rxc1 {[%clk 0:00:40]}  bxc4 {[%clk 0:01:03]} 22. Nd2 {[%clk 0:00:31]}  Bxd4 {[%clk 0:01:02]} 23. Qxd4 {[%clk 0:00:26]}  Ne2+ {[%clk 0:01:00]} 24. Kf2 {[%clk 0:00:27]}  Nxd4 {[%clk 0:01:01]} 25. Bc3 {[%clk 0:00:27]}  Nb5 {[%clk 0:00:54]} 26. Bxg7 {[%clk 0:00:27]}  Rg8 {[%clk 0:00:54]} 27. Be5 {[%clk 0:00:27]}  Rd8 {[%clk 0:00:46]} 28. Nxc4 {[%clk 0:00:25]}  Ke7 {[%clk 0:00:41]} 29. a4 {[%clk 0:00:24]}  Nd4 {[%clk 0:00:34]} 30. g4 {[%clk 0:00:21]}  Be4 {[%clk 0:00:33]} 31. c3 {[%clk 0:00:20]}  Nb3 {[%clk 0:00:27]} 32. Re1 {[%clk 0:00:20]}  Bd5 {[%clk 0:00:23]} 33. Ne3 {[%clk 0:00:17]}  f6 {[%clk 0:00:22]} 34. Bc7 {[%clk 0:00:15]}  Rd7 {[%clk 0:00:20]} 35. f5 {[%clk 0:00:09]}  Rxc7 {[%clk 0:00:19]} 36. fxe6 {[%clk 0:00:09]}  Bxe6 {[%clk 0:00:15]} 37. Nf5+ {[%clk 0:00:09]}  Kd7 {[%clk 0:00:14]} 38. Rd1+ {[%clk 0:00:09]}  Bd5 {[%clk 0:00:12]} 39. c4 {[%clk 0:00:09]}  Rb8 {[%clk 0:00:11]} 40. cxd5 {[%clk 0:00:08]}  cxd5 {[%clk 0:00:12]} 41. Rxd5+ {[%clk 0:00:09]}  Kc6 {[%clk 0:00:11]} 42. Rd6+ {[%clk 0:00:09]}  Kc5 {[%clk 0:00:11]} 43. Rxf6 {[%clk 0:00:09]}  Nd4 {[%clk 0:00:10]} 44. Ne3 {[%clk 0:00:07]}  Rb2+ {[%clk 0:00:10]} 45. Kg3 {[%clk 0:00:07]}  Rb3 {[%clk 0:00:10]} 46. Kf4 {[%clk 0:00:05]}  Re7 {[%clk 0:00:08]} 47. Nf5 {[%clk 0:00:03]}  Nxf5 {[%clk 0:00:07]} 48. Rxf5+ {[%clk 0:00:03]}  Kb4 {[%clk 0:00:06]} 49. a5 {[%clk 0:00:03]}  Ra3 {[%clk 0:00:06]} 50. h4 {[%clk 0:00:02]}  Rxa5 {[%clk 0:00:07]} 51. Rxa5 {[%clk 0:00:03]}  Kxa5 {[%clk 0:00:07]} 52. g5 {[%clk 0:00:03]}  Kb5 {[%clk 0:00:08]} 53. Kf5 {[%clk 0:00:04]}  a5 {[%clk 0:00:08]} 54. h5 {[%clk 0:00:05]}  Re8 {[%clk 0:00:08]} 55. Kf6 {[%clk 0:00:04]}  Rg8 {[%clk 0:00:08]} 56. h6 {[%clk 0:00:00]}  a4 {[%clk 0:00:07]} 0-1


[Site "https://www.chess.com"]

[Event "Titled Tuesday Blitz June 27 Late 2023"]
[White "Gardezi, Arsal"]
[Black "Arnold, Ken"]
[WhiteFideId "30949521"]
[BlackFideId "2056836"]
[WhiteElo "2189"]
[BlackElo "2395"]
[Result "0-1"]
[Round "6"]
[TimeControl "180+2"]
[Date "2023.06.27"]
[WhiteClock "0:00:16"]
[BlackClock "0:00:06"]
[Board "126"]

1. d4 {[%clk 0:03:00]}  c6 {[%clk 0:03:00]} 2. e4 {[%clk 0:02:59]}  d5 {[%clk 0:03:01]} 3. exd5 {[%clk 0:02:58]}  cxd5 {[%clk 0:03:01]} 4. c4 {[%clk 0:02:58]}  Nf6 {[%clk 0:03:02]} 5. Nc3 {[%clk 0:02:58]}  Nc6 {[%clk 0:03:02]} 6. Nf3 {[%clk 0:02:59]}  Bg4 {[%clk 0:03:02]} 7. Be2 {[%clk 0:02:58]}  e6 {[%clk 0:03:02]} 8. Be3 {[%clk 0:02:58]}  Be7 {[%clk 0:03:00]} 9. O-O {[%clk 0:02:56]}  O-O {[%clk 0:02:58]} 10. cxd5 {[%clk 0:02:57]}  Nxd5 {[%clk 0:02:58]} 11. Nxd5 {[%clk 0:02:57]}  Qxd5 {[%clk 0:02:57]} 12. h3 {[%clk 0:02:58]}  Bh5 {[%clk 0:02:55]} 13. a3 {[%clk 0:02:49]}  Rfd8 {[%clk 0:02:54]} 14. Qa4 {[%clk 0:02:43]}  Bf6 {[%clk 0:02:47]} 15. Rfd1 {[%clk 0:02:42]}  a6 {[%clk 0:02:43]} 16. Rac1 {[%clk 0:02:40]}  b5 {[%clk 0:02:36]} 17. Qc2 {[%clk 0:02:40]}  Rac8 {[%clk 0:02:34]} 18. Qb1 {[%clk 0:02:31]}  Bg6 {[%clk 0:02:32]} 19. Bd3 {[%clk 0:02:27]}  Bxd3 {[%clk 0:02:30]} 20. Qxd3 {[%clk 0:02:19]}  Nxd4 {[%clk 0:01:42]} 21. Nxd4 {[%clk 0:01:28]}  Rxc1 {[%clk 0:01:41]} 22. Rxc1 {[%clk 0:01:27]}  e5 {[%clk 0:01:29]} 23. Qb3 {[%clk 0:01:27]}  exd4 {[%clk 0:01:23]} 24. Qxd5 {[%clk 0:01:25]}  Rxd5 {[%clk 0:01:21]} 25. Rc8+ {[%clk 0:01:24]}  Rd8 {[%clk 0:01:07]} 26. Rxd8+ {[%clk 0:01:23]}  Bxd8 {[%clk 0:01:08]} 27. Bxd4 {[%clk 0:01:24]}  f5 {[%clk 0:01:09]} 28. Kf1 {[%clk 0:01:24]}  Kf7 {[%clk 0:01:09]} 29. Ke2 {[%clk 0:01:24]}  g6 {[%clk 0:01:09]} 30. Kd3 {[%clk 0:01:24]}  Ke6 {[%clk 0:01:10]} 31. Bc3 {[%clk 0:01:21]}  Kd5 {[%clk 0:01:09]} 32. Bg7 {[%clk 0:01:07]}  Bb6 {[%clk 0:01:07]} 33. f3 {[%clk 0:01:05]}  Bc5 {[%clk 0:01:05]} 34. Bc3 {[%clk 0:01:05]}  Bd6 {[%clk 0:01:04]} 35. Bg7 {[%clk 0:01:02]}  a5 {[%clk 0:01:04]} 36. Bc3 {[%clk 0:01:01]}  a4 {[%clk 0:01:03]} 37. Bg7 {[%clk 0:00:56]}  h5 {[%clk 0:01:00]} 38. Bc3 {[%clk 0:00:54]}  Bc5 {[%clk 0:00:32]} 39. Bf6 {[%clk 0:00:51]}  b4 {[%clk 0:00:32]} 40. axb4 {[%clk 0:00:50]}  Bxb4 {[%clk 0:00:32]} 41. Ke3 {[%clk 0:00:41]}  Kc4 {[%clk 0:00:28]} 42. Kf4 {[%clk 0:00:40]}  Bd2+ {[%clk 0:00:27]} 43. Kg3 {[%clk 0:00:34]}  Bc1 {[%clk 0:00:25]} 44. Kh4 {[%clk 0:00:28]}  Kb3 {[%clk 0:00:24]} 45. g4 {[%clk 0:00:27]}  hxg4 {[%clk 0:00:24]} 46. hxg4 {[%clk 0:00:27]}  Bxb2 {[%clk 0:00:23]} 47. Be7 {[%clk 0:00:19]}  fxg4 {[%clk 0:00:11]} 48. fxg4 {[%clk 0:00:18]}  Bc1 {[%clk 0:00:10]} 49. Kg3 {[%clk 0:00:15]}  g5 {[%clk 0:00:08]} 50. Kf3 {[%clk 0:00:15]}  a3 {[%clk 0:00:07]} 51. Ke4 {[%clk 0:00:14]}  a2 {[%clk 0:00:07]} 52. Bf6 {[%clk 0:00:14]}  Bb2 {[%clk 0:00:07]} 53. Bxb2 {[%clk 0:00:14]}  Kxb2 {[%clk 0:00:07]} 54. Kf5 {[%clk 0:00:15]}  a1=Q {[%clk 0:00:06]} 55. Kxg5 {[%clk 0:00:16]} 0-1


[Site "https://www.chess.com"]

[Event "Titled Tuesday Blitz June 27 Late 2023"]
[White "GAO"]
[Black "Burke, Paul"]
[BlackFideId "2605767"]
[WhiteElo "2348"]
[BlackElo "1943"]
[Result "1-0"]
[Round "6"]
[TimeControl "180+2"]
[Date "2023.06.27"]
[WhiteClock "0:01:01"]
[BlackClock "0:00:11"]
[Board "129"]

1. Nf3 {[%clk 0:03:00]}  a6 {[%clk 0:02:46]} 2. b3 {[%clk 0:03:00]}  d6 {[%clk 0:02:45]} 3. Bb2 {[%clk 0:03:01]}  Nd7 {[%clk 0:02:45]} 4. d4 {[%clk 0:03:01]}  Ngf6 {[%clk 0:02:43]} 5. g3 {[%clk 0:03:01]}  g6 {[%clk 0:02:43]} 6. Bg2 {[%clk 0:03:02]}  Bg7 {[%clk 0:02:43]} 7. O-O {[%clk 0:03:01]}  O-O {[%clk 0:02:44]} 8. c4 {[%clk 0:03:01]}  Re8 {[%clk 0:02:44]} 9. e4 {[%clk 0:03:01]}  e5 {[%clk 0:02:43]} 10. d5 {[%clk 0:03:01]}  h6 {[%clk 0:02:40]} 11. Nc3 {[%clk 0:03:00]}  Kh7 {[%clk 0:02:37]} 12. Qc2 {[%clk 0:02:59]}  Nh5 {[%clk 0:02:28]} 13. b4 {[%clk 0:02:57]}  Qe7 {[%clk 0:02:17]} 14. Rac1 {[%clk 0:02:52]}  Nb6 {[%clk 0:02:12]} 15. Ne2 {[%clk 0:02:47]}  Bg4 {[%clk 0:02:09]} 16. h3 {[%clk 0:02:43]}  Bxf3 {[%clk 0:02:08]} 17. Bxf3 {[%clk 0:02:44]}  Nf6 {[%clk 0:02:07]} 18. c5 {[%clk 0:02:42]}  Nbd7 {[%clk 0:02:05]} 19. c6 {[%clk 0:02:41]}  bxc6 {[%clk 0:02:03]} 20. Qxc6 {[%clk 0:02:38]}  Rec8 {[%clk 0:01:57]} 21. a4 {[%clk 0:02:28]}  Ne8 {[%clk 0:01:39]} 22. Bg4 {[%clk 0:02:23]}  Rd8 {[%clk 0:01:33]} 23. Bxd7 {[%clk 0:02:20]}  Qxd7 {[%clk 0:01:33]} 24. Qxd7 {[%clk 0:02:20]}  Rxd7 {[%clk 0:01:31]} 25. Rc6 {[%clk 0:02:21]}  f5 {[%clk 0:01:23]} 26. f3 {[%clk 0:02:11]}  Nf6 {[%clk 0:01:22]} 27. Nc3 {[%clk 0:02:08]}  Rb8 {[%clk 0:01:16]} 28. Ba3 {[%clk 0:02:05]}  Rb6 {[%clk 0:01:11]} 29. Rc4 {[%clk 0:01:46]}  Nh5 {[%clk 0:01:04]} 30. Kg2 {[%clk 0:01:41]}  f4 {[%clk 0:01:03]} 31. a5 {[%clk 0:01:34]}  Rb7 {[%clk 0:00:58]} 32. g4 {[%clk 0:01:34]}  Ng3 {[%clk 0:00:57]} 33. Rc1 {[%clk 0:01:27]}  Bf6 {[%clk 0:00:36]} 34. Rc2 {[%clk 0:01:18]}  Bd8 {[%clk 0:00:33]} 35. Rc6 {[%clk 0:01:16]}  Ra7 {[%clk 0:00:31]} 36. Bc1 {[%clk 0:01:12]}  Kg7 {[%clk 0:00:29]} 37. Bd2 {[%clk 0:01:09]}  Kf7 {[%clk 0:00:28]} 38. Be1 {[%clk 0:01:08]}  Bh4 {[%clk 0:00:18]} 39. Bf2 {[%clk 0:01:02]}  g5 {[%clk 0:00:11]} 40. Bxa7 {[%clk 0:01:01]} 1-0


[Site "https://www.chess.com"]

[Event "Titled Tuesday Blitz June 27 Late 2023"]
[White "Pert, Richard G"]
[Black "Gertler, David"]
[WhiteFideId "404748"]
[BlackFideId "2017377"]
[WhiteElo "2525"]
[BlackElo "2289"]
[Result "1-0"]
[Round "6"]
[TimeControl "180+2"]
[Date "2023.06.27"]
[WhiteClock "0:01:26"]
[BlackClock "0:01:22"]
[Board "131"]

1. d4 {[%clk 0:02:57]}  Nf6 {[%clk 0:02:50]} 2. Nc3 {[%clk 0:02:56]}  d5 {[%clk 0:02:49]} 3. e4 {[%clk 0:02:56]}  e6 {[%clk 0:02:48]} 4. Bg5 {[%clk 0:02:53]}  dxe4 {[%clk 0:02:48]} 5. Nxe4 {[%clk 0:02:52]}  Nbd7 {[%clk 0:02:48]} 6. Nf3 {[%clk 0:02:51]}  Be7 {[%clk 0:02:46]} 7. Nxf6+ {[%clk 0:02:47]}  Nxf6 {[%clk 0:02:46]} 8. Bd3 {[%clk 0:02:46]}  O-O {[%clk 0:02:44]} 9. Qe2 {[%clk 0:02:44]}  c5 {[%clk 0:02:44]} 10. dxc5 {[%clk 0:02:43]}  Bxc5 {[%clk 0:02:43]} 11. O-O-O {[%clk 0:02:38]}  Qe7 {[%clk 0:02:38]} 12. Ne5 {[%clk 0:02:34]}  h6 {[%clk 0:02:36]} 13. Bh4 {[%clk 0:02:31]}  b6 {[%clk 0:01:52]} 14. Ng4 {[%clk 0:02:28]}  Bb7 {[%clk 0:01:43]} 15. Bxf6 {[%clk 0:01:50]}  gxf6 {[%clk 0:01:43]} 16. Nxh6+ {[%clk 0:01:50]}  Kg7 {[%clk 0:01:44]} 17. Qg4+ {[%clk 0:01:46]}  Kh8 {[%clk 0:01:22]} 18. Nf5 {[%clk 0:01:26]} 1-0


[Site "https://www.chess.com"]

[Event "Titled Tuesday Blitz June 27 Late 2023"]
[White "Sarkar, Justin"]
[Black "Shapiro, Viktor"]
[WhiteFideId "2010011"]
[BlackFideId "4175700"]
[WhiteElo "2281"]
[BlackElo "2502"]
[Result "0-1"]
[Round "6"]
[TimeControl "180+2"]
[Date "2023.06.27"]
[WhiteClock "0:00:00"]
[BlackClock "0:01:45"]
[Board "132"]

1. e4 {[%clk 0:02:44]}  c5 {[%clk 0:02:59]} 2. Nf3 {[%clk 0:02:42]}  d6 {[%clk 0:02:59]} 3. d4 {[%clk 0:02:41]}  cxd4 {[%clk 0:03:00]} 4. Nxd4 {[%clk 0:02:40]}  Nf6 {[%clk 0:03:00]} 5. Nc3 {[%clk 0:02:40]}  a6 {[%clk 0:03:00]} 6. g3 {[%clk 0:02:40]}  e5 {[%clk 0:03:00]} 7. Nde2 {[%clk 0:02:39]}  Be6 {[%clk 0:02:59]} 8. Bg2 {[%clk 0:02:36]}  Nbd7 {[%clk 0:03:00]} 9. a4 {[%clk 0:02:26]}  Rc8 {[%clk 0:02:59]} 10. O-O {[%clk 0:02:22]}  Be7 {[%clk 0:02:59]} 11. h3 {[%clk 0:02:17]}  O-O {[%clk 0:02:58]} 12. g4 {[%clk 0:02:13]}  Nb6 {[%clk 0:02:45]} 13. Ng3 {[%clk 0:02:08]}  d5 {[%clk 0:02:42]} 14. a5 {[%clk 0:01:46]}  d4 {[%clk 0:02:37]} 15. Nce2 {[%clk 0:00:46]}  Nc4 {[%clk 0:02:34]} 16. f4 {[%clk 0:00:46]}  exf4 {[%clk 0:02:24]} 17. Nxf4 {[%clk 0:00:40]}  Nxa5 {[%clk 0:02:07]} 18. e5 {[%clk 0:00:17]}  Nd5 {[%clk 0:02:04]} 19. Nxe6 {[%clk 0:00:08]}  fxe6 {[%clk 0:02:04]} 20. Rxf8+ {[%clk 0:00:08]}  Bxf8 {[%clk 0:02:04]} 21. Kh1 {[%clk 0:00:05]}  Nc6 {[%clk 0:02:03]} 22. Ne4 {[%clk 0:00:03]}  Qc7 {[%clk 0:01:56]} 23. Ng5 {[%clk 0:00:02]}  Qxe5 {[%clk 0:01:53]} 24. Qf3 {[%clk 0:00:00]}  Nf6 {[%clk 0:01:45]} 0-1


[Site "https://www.chess.com"]